[Event "Titled Tuesday Blitz September 27 Early 2022"]
[White "Smietanska, Wiktoria"]
[Black "Omariev, Maksim"]
[WhiteFideId "21869359"]
[BlackFideId "4193423"]
[WhiteElo "1847"]
[BlackElo "2392"]
[Result "1-0"]
[Round "08"]
[TimeControl "180+1"]
[Date "2022.09.27"]
[WhiteClock "0:00:06"]
[BlackClock "0:00:03"]

1. c4 {[%clk 0:02:55]}  e5 {[%clk 0:02:59]} 2. Nc3 {[%clk 0:02:42]}  Nc6 {[%clk 0:02:59]} 3. Nf3 {[%clk 0:02:37]}  Nf6 {[%clk 0:02:58]} 4. e4 {[%clk 0:02:35]}  Bb4 {[%clk 0:02:53]} 5. d3 {[%clk 0:02:34]}  d6 {[%clk 0:02:53]} 6. a3 {[%clk 0:02:32]}  Bxc3+ {[%clk 0:02:47]} 7. bxc3 {[%clk 0:02:30]}  h6 {[%clk 0:02:48]} 8. g3 {[%clk 0:02:25]}  O-O {[%clk 0:02:48]} 9. Bg2 {[%clk 0:02:21]}  Be6 {[%clk 0:02:44]} 10. O-O {[%clk 0:02:18]}  a5 {[%clk 0:02:44]} 11. h3 {[%clk 0:02:12]}  Qd7 {[%clk 0:02:42]} 12. Kh2 {[%clk 0:02:11]}  a4 {[%clk 0:02:31]} 13. Ne1 {[%clk 0:02:00]}  Nh7 {[%clk 0:02:15]} 14. Nc2 {[%clk 0:01:52]}  Na5 {[%clk 0:02:13]} 15. Rb1 {[%clk 0:01:45]}  b6 {[%clk 0:02:00]} 16. f4 {[%clk 0:01:43]}  f6 {[%clk 0:01:56]} 17. Ne3 {[%clk 0:01:35]}  Nb3 {[%clk 0:01:52]} 18. f5 {[%clk 0:01:24]}  Bf7 {[%clk 0:01:52]} 19. Bb2 {[%clk 0:01:24]}  Rfb8 {[%clk 0:01:21]} 20. g4 {[%clk 0:01:16]}  Ra5 {[%clk 0:00:59]} 21. h4 {[%clk 0:01:10]}  Qc6 {[%clk 0:00:55]} 22. Nd5 {[%clk 0:01:07]}  Kf8 {[%clk 0:00:37]} 23. Bc1 {[%clk 0:00:54]}  Nxc1 {[%clk 0:00:26]} 24. Qxc1 {[%clk 0:00:55]}  Qc5 {[%clk 0:00:22]} 25. Rb4 {[%clk 0:00:51]}  b5 {[%clk 0:00:18]} 26. cxb5 {[%clk 0:00:47]}  Rbxb5 {[%clk 0:00:17]} 27. Qd2 {[%clk 0:00:35]}  Bxd5 {[%clk 0:00:03]} 28. exd5 {[%clk 0:00:34]}  Ra6 {[%clk 0:00:03]} 29. Rfb1 {[%clk 0:00:33]}  Rab6 {[%clk 0:00:03]} 30. d4 {[%clk 0:00:24]}  exd4 {[%clk 0:00:02]} 31. cxd4 {[%clk 0:00:25]}  Rxb4 {[%clk 0:00:02]} 32. dxc5 {[%clk 0:00:23]}  Rxb1 {[%clk 0:00:02]} 33. cxb6 {[%clk 0:00:24]}  Rxb6 {[%clk 0:00:02]} 34. Qa5 {[%clk 0:00:23]}  Ke7 {[%clk 0:00:02]} 35. Qxa4 {[%clk 0:00:23]}  Nf8 {[%clk 0:00:02]} 36. Qe4+ {[%clk 0:00:23]}  Kf7 {[%clk 0:00:02]} 37. Bf3 {[%clk 0:00:18]}  Ra6 {[%clk 0:00:02]} 38. Qe3 {[%clk 0:00:15]}  Ra5 {[%clk 0:00:02]} 39. g5 {[%clk 0:00:13]}  hxg5 {[%clk 0:00:02]} 40. Bh5+ {[%clk 0:00:11]}  Kg8 {[%clk 0:00:02]} 41. hxg5 {[%clk 0:00:11]}  fxg5 {[%clk 0:00:03]} 42. Qe7 {[%clk 0:00:06]} 1-0


[Site "https://www.chess.com"]

[Event "Titled Tuesday Blitz September 27 Early 2022"]
[White "Tari, Aryan"]
[Black "Cruz, Jonathan"]
[WhiteFideId "1510045"]
[BlackFideId "3802124"]
[WhiteElo "2892"]
[BlackElo "2706"]
[Result "1-0"]
[Round "08"]
[TimeControl "180+1"]
[Date "2022.09.27"]
[WhiteClock "0:00:39"]
[BlackClock "0:00:07"]

1. e4 {[%clk 0:02:59]}  e5 {[%clk 0:03:00]} 2. Nf3 {[%clk 0:02:52]}  Nc6 {[%clk 0:03:00]} 3. Bb5 {[%clk 0:02:48]}  a6 {[%clk 0:03:00]} 4. Ba4 {[%clk 0:02:48]}  Nf6 {[%clk 0:03:00]} 5. Nc3 {[%clk 0:02:49]}  d6 {[%clk 0:02:47]} 6. Bxc6+ {[%clk 0:02:45]}  bxc6 {[%clk 0:02:48]} 7. d4 {[%clk 0:02:46]}  exd4 {[%clk 0:02:48]} 8. Nxd4 {[%clk 0:02:47]}  Bd7 {[%clk 0:02:46]} 9. Qf3 {[%clk 0:02:36]}  Be7 {[%clk 0:01:24]} 10. e5 {[%clk 0:02:33]}  dxe5 {[%clk 0:01:24]} 11. Nxc6 {[%clk 0:02:34]}  Bxc6 {[%clk 0:01:24]} 12. Qxc6+ {[%clk 0:02:34]}  Nd7 {[%clk 0:01:25]} 13. O-O {[%clk 0:02:16]}  O-O {[%clk 0:01:09]} 14. Rd1 {[%clk 0:02:15]}  Bd6 {[%clk 0:01:07]} 15. Ne4 {[%clk 0:02:16]}  Nf6 {[%clk 0:00:32]} 16. Nxd6 {[%clk 0:01:45]}  cxd6 {[%clk 0:00:31]} 17. Rxd6 {[%clk 0:01:46]}  Qb8 {[%clk 0:00:19]} 18. Rxf6 {[%clk 0:01:15]}  gxf6 {[%clk 0:00:17]} 19. Bh6 {[%clk 0:01:14]}  Qxb2 {[%clk 0:00:15]} 20. Rf1 {[%clk 0:01:09]}  e4 {[%clk 0:00:04]} 21. Qxe4 {[%clk 0:01:09]}  Kh8 {[%clk 0:00:02]} 22. Bxf8 {[%clk 0:01:06]}  Rxf8 {[%clk 0:00:02]} 23. Qc4 {[%clk 0:01:04]}  a5 {[%clk 0:00:01]} 24. h4 {[%clk 0:01:02]}  Kg7 {[%clk 0:00:01]} 25. h5 {[%clk 0:01:02]}  h6 {[%clk 0:00:02]} 26. Re1 {[%clk 0:01:01]}  Qb4 {[%clk 0:00:01]} 27. Qe2 {[%clk 0:01:00]}  Rd8 {[%clk 0:00:01]} 28. Qe3 {[%clk 0:00:51]}  Rd6 {[%clk 0:00:02]} 29. Qg3+ {[%clk 0:00:51]}  Kf8 {[%clk 0:00:02]} 30. c3 {[%clk 0:00:51]}  Qc5 {[%clk 0:00:02]} 31. Qf4 {[%clk 0:00:51]}  Kg7 {[%clk 0:00:02]} 32. Qg3+ {[%clk 0:00:49]}  Kf8 {[%clk 0:00:02]} 33. Rb1 {[%clk 0:00:48]}  Rd8 {[%clk 0:00:02]} 34. Qf4 {[%clk 0:00:46]}  Qxh5 {[%clk 0:00:02]} 35. Qxf6 {[%clk 0:00:46]}  Rd1+ {[%clk 0:00:02]} 36. Rxd1 {[%clk 0:00:46]}  Qxd1+ {[%clk 0:00:03]} 37. Kh2 {[%clk 0:00:47]}  Qh5+ {[%clk 0:00:04]} 38. Kg3 {[%clk 0:00:47]}  Kg8 {[%clk 0:00:04]} 39. Qd8+ {[%clk 0:00:43]}  Kg7 {[%clk 0:00:03]} 40. Qd4+ {[%clk 0:00:43]}  Kf8 {[%clk 0:00:03]} 41. Qd6+ {[%clk 0:00:35]}  Kg8 {[%clk 0:00:02]} 42. f4 {[%clk 0:00:34]}  Kg7 {[%clk 0:00:01]} 43. Qe5+ {[%clk 0:00:34]}  Qxe5 {[%clk 0:00:01]} 44. fxe5 {[%clk 0:00:35]}  Kf8 {[%clk 0:00:01]} 45. Kf4 {[%clk 0:00:35]}  Ke7 {[%clk 0:00:02]} 46. Kf5 {[%clk 0:00:36]}  Kd7 {[%clk 0:00:02]} 47. Kf6 {[%clk 0:00:37]}  Ke8 {[%clk 0:00:03]} 48. g4 {[%clk 0:00:36]}  Kf8 {[%clk 0:00:03]} 49. c4 {[%clk 0:00:36]}  Ke8 {[%clk 0:00:03]} 50. c5 {[%clk 0:00:37]}  Kd7 {[%clk 0:00:04]} 51. Kxf7 {[%clk 0:00:37]}  Kc6 {[%clk 0:00:05]} 52. e6 {[%clk 0:00:38]}  Kxc5 {[%clk 0:00:06]} 53. e7 {[%clk 0:00:39]}  Kd4 {[%clk 0:00:06]} 54. e8=Q {[%clk 0:00:40]}  Kc3 {[%clk 0:00:07]} 55. Qb5 {[%clk 0:00:39]} 1-0


[Site "https://www.chess.com"]

[Event "Titled Tuesday Blitz September 27 Early 2022"]
[White "Tarnowska, Aleksandra"]
[Black "Sahil, Tickoo"]
[WhiteFideId "1180967"]
[BlackFideId "5019710"]
[WhiteElo "1700"]
[BlackElo "2047"]
[Result "1-0"]
[Round "08"]
[TimeControl "180+1"]
[Date "2022.09.27"]
[WhiteClock "0:00:06"]
[BlackClock "0:00:17"]

1. e4 {[%clk 0:02:44]}  c5 {[%clk 0:02:59]} 2. Nf3 {[%clk 0:02:37]}  d6 {[%clk 0:02:58]} 3. Bb5+ {[%clk 0:02:34]}  Bd7 {[%clk 0:02:58]} 4. Bxd7+ {[%clk 0:02:32]}  Nxd7 {[%clk 0:02:59]} 5. O-O {[%clk 0:02:28]}  Ngf6 {[%clk 0:02:58]} 6. Re1 {[%clk 0:02:29]}  e6 {[%clk 0:02:52]} 7. c3 {[%clk 0:02:27]}  Be7 {[%clk 0:02:52]} 8. d3 {[%clk 0:02:25]}  O-O {[%clk 0:02:51]} 9. Nbd2 {[%clk 0:02:24]}  Rc8 {[%clk 0:02:48]} 10. Nf1 {[%clk 0:02:25]}  Nb8 {[%clk 0:02:36]} 11. Ng3 {[%clk 0:02:20]}  Nc6 {[%clk 0:02:31]} 12. h3 {[%clk 0:02:08]}  Re8 {[%clk 0:02:22]} 13. Nh2 {[%clk 0:02:08]}  Qc7 {[%clk 0:02:20]} 14. Ng4 {[%clk 0:02:08]}  Nxg4 {[%clk 0:02:05]} 15. Qxg4 {[%clk 0:02:07]}  Ne5 {[%clk 0:02:02]} 16. Qe2 {[%clk 0:01:56]}  Ng6 {[%clk 0:01:59]} 17. Be3 {[%clk 0:01:44]}  Bh4 {[%clk 0:01:57]} 18. Qg4 {[%clk 0:01:39]}  Bxg3 {[%clk 0:01:42]} 19. Qxg3 {[%clk 0:01:38]}  Qe7 {[%clk 0:01:42]} 20. Bg5 {[%clk 0:01:30]}  f6 {[%clk 0:01:38]} 21. Be3 {[%clk 0:01:26]}  Rcd8 {[%clk 0:01:37]} 22. f4 {[%clk 0:01:24]}  Qf7 {[%clk 0:01:34]} 23. Qf2 {[%clk 0:01:21]}  b6 {[%clk 0:01:23]} 24. Rad1 {[%clk 0:01:20]}  d5 {[%clk 0:01:23]} 25. f5 {[%clk 0:01:13]}  exf5 {[%clk 0:01:22]} 26. exf5 {[%clk 0:01:13]}  Ne5 {[%clk 0:01:21]} 27. Bf4 {[%clk 0:01:12]}  Nc6 {[%clk 0:01:15]} 28. Qf3 {[%clk 0:00:55]}  Qd7 {[%clk 0:01:11]} 29. g4 {[%clk 0:00:52]}  d4 {[%clk 0:01:06]} 30. c4 {[%clk 0:00:47]}  Kh8 {[%clk 0:00:58]} 31. Kf2 {[%clk 0:00:42]}  h6 {[%clk 0:00:58]} 32. a3 {[%clk 0:00:42]}  Ne5 {[%clk 0:00:33]} 33. Bxe5 {[%clk 0:00:41]}  fxe5 {[%clk 0:00:33]} 34. Re4 {[%clk 0:00:31]}  Qe7 {[%clk 0:00:33]} 35. Rde1 {[%clk 0:00:30]}  Qh4+ {[%clk 0:00:33]} 36. Qg3 {[%clk 0:00:29]}  Qg5 {[%clk 0:00:30]} 37. Rxe5 {[%clk 0:00:22]}  Rxe5 {[%clk 0:00:28]} 38. Rxe5 {[%clk 0:00:20]}  Rf8 {[%clk 0:00:22]} 39. h4 {[%clk 0:00:15]}  Qd2+ {[%clk 0:00:21]} 40. Re2 {[%clk 0:00:16]}  Qc1 {[%clk 0:00:21]} 41. Qf3 {[%clk 0:00:12]}  Kh7 {[%clk 0:00:16]} 42. Qe4 {[%clk 0:00:08]}  Rf6 {[%clk 0:00:14]} 43. g5 {[%clk 0:00:07]}  hxg5 {[%clk 0:00:13]} 44. hxg5 {[%clk 0:00:06]}  Qxg5 {[%clk 0:00:14]} 45. Ke1 {[%clk 0:00:06]}  Rxf5 {[%clk 0:00:13]} 46. Rh2+ {[%clk 0:00:06]}  Kg6 {[%clk 0:00:13]} 47. Rg2 {[%clk 0:00:05]}  Qxg2 {[%clk 0:00:06]} 48. Qxg2+ {[%clk 0:00:06]}  Kf6 {[%clk 0:00:07]} 49. Qc6+ {[%clk 0:00:06]}  Kg5 {[%clk 0:00:06]} 50. Qb7 {[%clk 0:00:05]}  Re5+ {[%clk 0:00:06]} 51. Kd2 {[%clk 0:00:05]}  Kf6 {[%clk 0:00:06]} 52. Qxa7 {[%clk 0:00:05]}  Re6 {[%clk 0:00:07]} 53. Qd7 {[%clk 0:00:05]}  g5 {[%clk 0:00:07]} 54. Qd8+ {[%clk 0:00:06]}  Kf5 {[%clk 0:00:08]} 55. Qf8+ {[%clk 0:00:05]}  Ke5 {[%clk 0:00:07]} 56. Qg7+ {[%clk 0:00:05]}  Kf5 {[%clk 0:00:08]} 57. Qf7+ {[%clk 0:00:05]}  Rf6 {[%clk 0:00:08]} 58. Qd5+ {[%clk 0:00:05]}  Kg6 {[%clk 0:00:09]} 59. Qg2 {[%clk 0:00:04]}  Rf5 {[%clk 0:00:08]} 60. Qc6+ {[%clk 0:00:04]}  Rf6 {[%clk 0:00:09]} 61. Qe4+ {[%clk 0:00:04]}  Kh5 {[%clk 0:00:10]} 62. Ke2 {[%clk 0:00:04]}  g4 {[%clk 0:00:10]} 63. Qh7+ {[%clk 0:00:04]}  Kg5 {[%clk 0:00:11]} 64. Qg7+ {[%clk 0:00:05]}  Rg6 {[%clk 0:00:11]} 65. Qe5+ {[%clk 0:00:05]}  Kh6 {[%clk 0:00:12]} 66. Kf2 {[%clk 0:00:05]}  g3+ {[%clk 0:00:12]} 67. Kg2 {[%clk 0:00:05]}  Rg5 {[%clk 0:00:12]} 68. Qe6+ {[%clk 0:00:04]}  Rg6 {[%clk 0:00:13]} 69. Qh3+ {[%clk 0:00:04]}  Kg7 {[%clk 0:00:14]} 70. Qd7+ {[%clk 0:00:04]}  Kh6 {[%clk 0:00:14]} 71. a4 {[%clk 0:00:04]}  Rf6 {[%clk 0:00:12]} 72. Qd5 {[%clk 0:00:03]}  Rg6 {[%clk 0:00:13]} 73. Qe4 {[%clk 0:00:03]}  Kg7 {[%clk 0:00:13]} 74. Qe5+ {[%clk 0:00:03]}  Kf7 {[%clk 0:00:14]} 75. b3 {[%clk 0:00:03]}  Kg8 {[%clk 0:00:14]} 76. Qd5+ {[%clk 0:00:03]}  Kh7 {[%clk 0:00:14]} 77. Qf7+ {[%clk 0:00:03]}  Kh6 {[%clk 0:00:14]} 78. Qf8+ {[%clk 0:00:03]}  Kh7 {[%clk 0:00:15]} 79. Qa8 {[%clk 0:00:03]}  Kg7 {[%clk 0:00:15]} 80. a5 {[%clk 0:00:04]}  bxa5 {[%clk 0:00:15]} 81. Qxa5 {[%clk 0:00:05]}  Rg5 {[%clk 0:00:16]} 82. Qc7+ {[%clk 0:00:05]}  Kg6 {[%clk 0:00:16]} 83. Qb6+ {[%clk 0:00:04]}  Kh5 {[%clk 0:00:17]} 84. b4 {[%clk 0:00:04]}  cxb4 {[%clk 0:00:17]} 85. Qxb4 {[%clk 0:00:05]}  Rg4 {[%clk 0:00:17]} 86. Qd6 {[%clk 0:00:05]}  Kh4 {[%clk 0:00:17]} 87. Qh6# {[%clk 0:00:06]} 1-0


[Site "https://www.chess.com"]

[Event "Titled Tuesday Blitz September 27 Early 2022"]
[White "Vachylia, Andrii"]
[Black "Sethuraman, S.P."]
[WhiteFideId "14137224"]
[BlackFideId "5021596"]
[WhiteElo "2318"]
[BlackElo "2425"]
[Result "1/2-1/2"]
[Round "08"]
[TimeControl "180+1"]
[Date "2022.09.27"]
[WhiteClock "0:00:06"]
[BlackClock "0:00:18"]

1. e4 {[%clk 0:03:00]}  c5 {[%clk 0:02:59]} 2. Nf3 {[%clk 0:03:00]}  d6 {[%clk 0:02:59]} 3. d4 {[%clk 0:03:00]}  cxd4 {[%clk 0:03:00]} 4. Nxd4 {[%clk 0:03:00]}  Nf6 {[%clk 0:03:00]} 5. Nc3 {[%clk 0:03:00]}  Nc6 {[%clk 0:03:01]} 6. Bg5 {[%clk 0:02:58]}  e6 {[%clk 0:03:01]} 7. Qd2 {[%clk 0:02:56]}  a6 {[%clk 0:03:01]} 8. O-O-O {[%clk 0:02:56]}  Bd7 {[%clk 0:03:02]} 9. f4 {[%clk 0:02:56]}  Be7 {[%clk 0:03:02]} 10. Nf3 {[%clk 0:02:56]}  b5 {[%clk 0:03:01]} 11. Bxf6 {[%clk 0:02:56]}  gxf6 {[%clk 0:03:02]} 12. Bd3 {[%clk 0:02:56]}  Qa5 {[%clk 0:02:56]} 13. Kb1 {[%clk 0:02:56]}  h5 {[%clk 0:02:53]} 14. f5 {[%clk 0:02:50]}  b4 {[%clk 0:02:52]} 15. Ne2 {[%clk 0:02:49]}  Qc5 {[%clk 0:02:46]} 16. Nf4 {[%clk 0:02:44]}  e5 {[%clk 0:01:57]} 17. Nd5 {[%clk 0:02:41]}  Bd8 {[%clk 0:01:57]} 18. h3 {[%clk 0:02:25]}  a5 {[%clk 0:01:55]} 19. g4 {[%clk 0:02:23]}  a4 {[%clk 0:01:47]} 20. gxh5 {[%clk 0:02:01]}  Rb8 {[%clk 0:01:23]} 21. Rhg1 {[%clk 0:01:57]}  Bxf5 {[%clk 0:01:15]} 22. exf5 {[%clk 0:01:22]}  Qxd5 {[%clk 0:01:15]} 23. Qe2 {[%clk 0:01:20]}  Qc5 {[%clk 0:01:15]} 24. Be4 {[%clk 0:01:18]}  Ne7 {[%clk 0:01:13]} 25. Rg7 {[%clk 0:00:30]}  d5 {[%clk 0:01:04]} 26. Bxd5 {[%clk 0:00:30]}  Nxd5 {[%clk 0:01:01]} 27. Nxe5 {[%clk 0:00:30]}  Nc3+ {[%clk 0:00:59]} 28. bxc3 {[%clk 0:00:30]}  Qxe5 {[%clk 0:00:59]} 29. Qc4 {[%clk 0:00:24]}  Qe7 {[%clk 0:00:31]} 30. h6 {[%clk 0:00:14]}  Kf8 {[%clk 0:00:26]} 31. Rdg1 {[%clk 0:00:13]}  bxc3+ {[%clk 0:00:22]} 32. Ka1 {[%clk 0:00:14]}  Bb6 {[%clk 0:00:20]} 33. Rb1 {[%clk 0:00:10]}  Ba7 {[%clk 0:00:17]} 34. Rxb8+ {[%clk 0:00:05]}  Bxb8 {[%clk 0:00:18]} 35. Qc8+ {[%clk 0:00:06]}  Qe8 {[%clk 0:00:18]} 36. Qc5+ {[%clk 0:00:06]}  Qe7 {[%clk 0:00:19]} 37. Qc8+ {[%clk 0:00:06]}  Qe8 {[%clk 0:00:19]} 38. Qc5+ {[%clk 0:00:06]}  Qe7 {[%clk 0:00:18]} 39. Qc8+ {[%clk 0:00:06]} 1/2-1/2


[Site "https://www.chess.com"]

[Event "Titled Tuesday Blitz September 27 Early 2022"]
[White "Vagman, Roy"]
[Black "Ansh M Shah"]
[WhiteFideId "2828995"]
[BlackFideId "25033379"]
[WhiteElo "1945"]
[BlackElo "1819"]
[Result "1-0"]
[Round "08"]
[TimeControl "180+1"]
[Date "2022.09.27"]
[WhiteClock "0:01:07"]
[BlackClock "0:00:05"]

1. Nf3 {[%clk 0:03:00]}  Nf6 {[%clk 0:02:57]} 2. c4 {[%clk 0:02:58]}  e6 {[%clk 0:02:58]} 3. g3 {[%clk 0:02:56]}  d5 {[%clk 0:02:59]} 4. cxd5 {[%clk 0:02:56]}  exd5 {[%clk 0:02:59]} 5. Bg2 {[%clk 0:02:54]}  Be7 {[%clk 0:03:00]} 6. O-O {[%clk 0:02:53]}  O-O {[%clk 0:03:01]} 7. b3 {[%clk 0:02:49]}  Bf5 {[%clk 0:03:00]} 8. d3 {[%clk 0:02:49]}  c5 {[%clk 0:02:45]} 9. Bb2 {[%clk 0:02:49]}  Nc6 {[%clk 0:02:46]} 10. Nbd2 {[%clk 0:02:49]}  Bg6 {[%clk 0:02:34]} 11. Nh4 {[%clk 0:02:47]}  Rc8 {[%clk 0:02:27]} 12. Nxg6 {[%clk 0:02:36]}  hxg6 {[%clk 0:02:28]} 13. e4 {[%clk 0:02:36]}  dxe4 {[%clk 0:02:22]} 14. dxe4 {[%clk 0:02:32]}  Nd7 {[%clk 0:01:56]} 15. Nc4 {[%clk 0:02:31]}  b5 {[%clk 0:01:44]} 16. Ne3 {[%clk 0:02:26]}  Bf6 {[%clk 0:01:39]} 17. Bxf6 {[%clk 0:02:23]}  Nxf6 {[%clk 0:01:40]} 18. Nd5 {[%clk 0:02:20]}  Nxd5 {[%clk 0:01:40]} 19. exd5 {[%clk 0:02:21]}  Nd4 {[%clk 0:01:40]} 20. Re1 {[%clk 0:02:20]}  Qf6 {[%clk 0:01:37]} 21. Rc1 {[%clk 0:02:09]}  Rc7 {[%clk 0:01:17]} 22. Qg4 {[%clk 0:02:04]}  Rd8 {[%clk 0:01:04]} 23. h4 {[%clk 0:01:58]}  a5 {[%clk 0:00:53]} 24. Red1 {[%clk 0:01:58]}  Qe5 {[%clk 0:00:25]} 25. Re1 {[%clk 0:01:53]}  Qf5 {[%clk 0:00:17]} 26. Qxf5 {[%clk 0:01:46]}  gxf5 {[%clk 0:00:16]} 27. Kh1 {[%clk 0:01:43]}  g6 {[%clk 0:00:15]} 28. Red1 {[%clk 0:01:43]}  Rcd7 {[%clk 0:00:10]} 29. Rxc5 {[%clk 0:01:42]}  Ne6 {[%clk 0:00:09]} 30. Rxb5 {[%clk 0:01:40]}  f4 {[%clk 0:00:09]} 31. g4 {[%clk 0:01:39]}  f3 {[%clk 0:00:08]} 32. Bxf3 {[%clk 0:01:39]}  Nf4 {[%clk 0:00:07]} 33. Rd4 {[%clk 0:01:36]}  Ne6 {[%clk 0:00:05]} 34. Rc4 {[%clk 0:01:08]}  Nc7 {[%clk 0:00:04]} 35. Rxa5 {[%clk 0:01:07]}  Nxd5 {[%clk 0:00:05]} 36. Bxd5 {[%clk 0:01:06]}  Rxd5 {[%clk 0:00:06]} 37. Rxd5 {[%clk 0:01:06]}  Rxd5 {[%clk 0:00:06]} 38. Kg2 {[%clk 0:01:06]}  Rd2 {[%clk 0:00:06]} 39. a4 {[%clk 0:01:06]}  Rb2 {[%clk 0:00:04]} 40. Rb4 {[%clk 0:01:07]}  Kg7 {[%clk 0:00:05]} 41. a5 {[%clk 0:01:07]}  Ra2 {[%clk 0:00:05]} 42. Ra4 {[%clk 0:01:07]}  Rb2 {[%clk 0:00:05]} 43. a6 {[%clk 0:01:07]}  Rxb3 {[%clk 0:00:05]} 44. a7 {[%clk 0:01:07]} 1-0


[Site "https://www.chess.com"]

[Event "Titled Tuesday Blitz September 27 Early 2022"]
[White "Vargas, Mauricio"]
[Black "Zaksaite, Salomeja"]
[WhiteFideId "4404572"]
[BlackFideId "12801496"]
[WhiteElo "2004"]
[BlackElo "1953"]
[Result "0-1"]
[Round "08"]
[TimeControl "180+1"]
[Date "2022.09.27"]
[WhiteClock "0:00:44"]
[BlackClock "0:00:25"]

1. e4 {[%clk 0:03:00]}  e5 {[%clk 0:02:58]} 2. Nf3 {[%clk 0:02:59]}  Nc6 {[%clk 0:02:57]} 3. d4 {[%clk 0:03:00]}  exd4 {[%clk 0:02:51]} 4. Bc4 {[%clk 0:03:01]}  Nf6 {[%clk 0:02:50]} 5. e5 {[%clk 0:03:00]}  d5 {[%clk 0:02:48]} 6. Bb5 {[%clk 0:03:00]}  Ne4 {[%clk 0:02:48]} 7. Nxd4 {[%clk 0:03:00]}  Bd7 {[%clk 0:02:48]} 8. Bxc6 {[%clk 0:03:00]}  bxc6 {[%clk 0:02:48]} 9. O-O {[%clk 0:02:59]}  Bc5 {[%clk 0:02:48]} 10. c3 {[%clk 0:02:59]}  Bb6 {[%clk 0:02:46]} 11. f3 {[%clk 0:02:58]}  Ng5 {[%clk 0:02:45]} 12. Be3 {[%clk 0:02:58]}  Ne6 {[%clk 0:02:44]} 13. f4 {[%clk 0:02:52]}  c5 {[%clk 0:02:43]} 14. Nf3 {[%clk 0:02:46]}  Bb5 {[%clk 0:02:29]} 15. Re1 {[%clk 0:02:37]}  d4 {[%clk 0:02:27]} 16. Bf2 {[%clk 0:02:34]}  Nxf4 {[%clk 0:02:21]} 17. a4 {[%clk 0:02:24]}  Bc6 {[%clk 0:02:19]} 18. a5 {[%clk 0:02:23]}  d3 {[%clk 0:01:49]} 19. axb6 {[%clk 0:02:21]}  axb6 {[%clk 0:01:48]} 20. Rxa8 {[%clk 0:02:20]}  Qxa8 {[%clk 0:01:49]} 21. Qd2 {[%clk 0:01:59]}  Nxg2 {[%clk 0:01:19]} 22. Nh4 {[%clk 0:01:40]}  Nxe1 {[%clk 0:01:09]} 23. Qxe1 {[%clk 0:01:36]}  Qd8 {[%clk 0:01:06]} 24. Qd2 {[%clk 0:01:30]}  O-O {[%clk 0:01:04]} 25. Na3 {[%clk 0:01:12]}  Qd5 {[%clk 0:01:02]} 26. Bg3 {[%clk 0:00:58]}  Qh1+ {[%clk 0:00:46]} 27. Kf2 {[%clk 0:00:57]}  f6 {[%clk 0:00:36]} 28. e6 {[%clk 0:00:54]}  Re8 {[%clk 0:00:36]} 29. Qxd3 {[%clk 0:00:46]}  Rxe6 {[%clk 0:00:28]} 30. Qd8+ {[%clk 0:00:44]}  Re8 {[%clk 0:00:25]} 0-1


[Site "https://www.chess.com"]

[Event "Titled Tuesday Blitz September 27 Early 2022"]
[White "Vokhidov, Shamsiddin"]
[Black "Terzi, Alexei"]
[WhiteFideId "14204223"]
[BlackFideId "13505076"]
[WhiteElo "2619"]
[BlackElo "2031"]
[Result "1-0"]
[Round "08"]
[TimeControl "180+1"]
[Date "2022.09.27"]
[WhiteClock "0:01:53"]
[BlackClock "0:00:18"]

1. e4 {[%clk 0:03:00]}  c5 {[%clk 0:02:59]} 2. Nf3 {[%clk 0:03:01]}  Nc6 {[%clk 0:03:00]} 3. Bb5 {[%clk 0:03:01]}  Nd4 {[%clk 0:02:50]} 4. Nxd4 {[%clk 0:03:01]}  cxd4 {[%clk 0:02:50]} 5. c3 {[%clk 0:03:00]}  a6 {[%clk 0:02:37]} 6. Bc4 {[%clk 0:03:00]}  dxc3 {[%clk 0:02:32]} 7. Nxc3 {[%clk 0:02:59]}  e6 {[%clk 0:02:16]} 8. d4 {[%clk 0:02:58]}  Bb4 {[%clk 0:02:08]} 9. O-O {[%clk 0:02:56]}  Ne7 {[%clk 0:02:06]} 10. Qg4 {[%clk 0:02:55]}  O-O {[%clk 0:02:04]} 11. Bd3 {[%clk 0:02:54]}  f5 {[%clk 0:01:58]} 12. Qh3 {[%clk 0:02:50]}  b5 {[%clk 0:01:43]} 13. Bg5 {[%clk 0:02:45]}  Bxc3 {[%clk 0:01:34]} 14. bxc3 {[%clk 0:02:44]}  f4 {[%clk 0:01:24]} 15. Qh4 {[%clk 0:02:23]}  Rf7 {[%clk 0:01:07]} 16. Bxf4 {[%clk 0:02:20]}  Bb7 {[%clk 0:01:05]} 17. Bd6 {[%clk 0:02:19]}  Ng6 {[%clk 0:01:04]} 18. Qxd8+ {[%clk 0:02:18]}  Rxd8 {[%clk 0:01:05]} 19. a4 {[%clk 0:02:19]}  Nf4 {[%clk 0:00:59]} 20. Bxf4 {[%clk 0:02:14]}  Rxf4 {[%clk 0:01:00]} 21. axb5 {[%clk 0:02:14]}  axb5 {[%clk 0:01:00]} 22. f3 {[%clk 0:02:14]}  Rc8 {[%clk 0:00:58]} 23. Bxb5 {[%clk 0:02:13]}  Bc6 {[%clk 0:00:51]} 24. Bxc6 {[%clk 0:02:04]}  Rxc6 {[%clk 0:00:51]} 25. Ra7 {[%clk 0:02:02]}  Rf7 {[%clk 0:00:47]} 26. Rb1 {[%clk 0:02:01]}  h6 {[%clk 0:00:23]} 27. Rbb7 {[%clk 0:02:01]}  Rxc3 {[%clk 0:00:22]} 28. Rxd7 {[%clk 0:02:01]}  Rxd7 {[%clk 0:00:22]} 29. Rxd7 {[%clk 0:02:02]}  Kf8 {[%clk 0:00:22]} 30. Kf2 {[%clk 0:02:01]}  Rc2+ {[%clk 0:00:20]} 31. Kg3 {[%clk 0:02:01]}  Rd2 {[%clk 0:00:21]} 32. h4 {[%clk 0:02:00]}  h5 {[%clk 0:00:19]} 33. d5 {[%clk 0:01:50]}  exd5 {[%clk 0:00:19]} 34. Rxd5 {[%clk 0:01:50]}  Re2 {[%clk 0:00:19]} 35. Rxh5 {[%clk 0:01:50]}  Kg8 {[%clk 0:00:20]} 36. Rd5 {[%clk 0:01:50]}  Kf7 {[%clk 0:00:20]} 37. h5 {[%clk 0:01:50]}  Kg8 {[%clk 0:00:21]} 38. Kh3 {[%clk 0:01:51]}  Kh7 {[%clk 0:00:21]} 39. g4 {[%clk 0:01:51]}  Re3 {[%clk 0:00:22]} 40. Kg3 {[%clk 0:01:52]}  Rc3 {[%clk 0:00:22]} 41. Kf4 {[%clk 0:01:52]}  Rc1 {[%clk 0:00:23]} 42. g5 {[%clk 0:01:53]}  Rg1 {[%clk 0:00:22]} 43. Rd8 {[%clk 0:01:53]}  g6 {[%clk 0:00:19]} 44. Rd7+ {[%clk 0:01:53]}  Kg8 {[%clk 0:00:19]} 45. hxg6 {[%clk 0:01:53]}  Rg2 {[%clk 0:00:18]} 46. Kf5 {[%clk 0:01:53]}  Rg3 {[%clk 0:00:18]} 47. f4 {[%clk 0:01:53]}  Rg2 {[%clk 0:00:18]} 48. Kf6 {[%clk 0:01:53]} 1-0


[Site "https://www.chess.com"]